[Event "*** Titled Tuesday Blitz"]
[Site "Chess.com"]
[Date "2021.02.02"]
[Round "8"]
[White "Sharpchess22"]
[Black "Ave_Mariia"]
[Result "1-0"]
[WhiteElo "2688"]
[BlackElo "2475"]
[TimeControl "180+1"]
[EndTime "11:28:54 PST"]
[Termination "Sharpchess22 won by resignation"]

1. d4 {[%clk 0:02:48.2]} 1... Nf6 {[%clk 0:02:59.6]} 2. Nf3 {[%clk 0:02:47]}
2... e6 {[%clk 0:02:59.5]} 3. Bf4 {[%clk 0:02:46]} 3... c5 {[%clk 0:02:56.7]} 4.
e3 {[%clk 0:02:45.6]} 4... b6 {[%clk 0:02:55.8]} 5. h3 {[%clk 0:02:43.8]} 5...
Bb7 {[%clk 0:02:55.5]} 6. Nbd2 {[%clk 0:02:44.1]} 6... d6 {[%clk 0:02:49.7]} 7.
Bb5+ {[%clk 0:02:37.2]} 7... Nbd7 {[%clk 0:02:39.7]} 8. Nc4 {[%clk 0:02:27.9]}
8... Ne4 {[%clk 0:02:33.2]} 9. O-O {[%clk 0:02:18.3]} 9... Qc7 {[%clk
0:01:49.5]} 10. Nfe5 {[%clk 0:01:59.4]} 10... dxe5 {[%clk 0:01:11.3]} 11. Nxe5
{[%clk 0:01:58.9]} 11... Bd6 {[%clk 0:01:03.2]} 12. Bxd7+ {[%clk 0:01:55.6]}
12... Kf8 {[%clk 0:00:57.8]} 13. Ba4 {[%clk 0:01:40.3]} 13... g5 {[%clk
0:00:47.2]} 14. Nd7+ {[%clk 0:01:34.4]} 14... Kg7 {[%clk 0:00:46.7]} 15. Bxd6
{[%clk 0:01:29.7]} 15... Qxd6 {[%clk 0:00:47.6]} 16. dxc5 {[%clk 0:01:27]} 16...
Qxd1 {[%clk 0:00:44.4]} 17. Raxd1 {[%clk 0:01:23.8]} 17... bxc5 {[%clk
0:00:44.5]} 18. Ne5 {[%clk 0:01:01.9]} 18... Rhd8 {[%clk 0:00:39.3]} 19. f3
{[%clk 0:01:00.8]} 19... Ng3 {[%clk 0:00:38.7]} 20. Rfe1 {[%clk 0:01:00.7]}
20... Nf5 {[%clk 0:00:36.9]} 21. Kf2 {[%clk 0:01:00.3]} 21... f6 {[%clk
0:00:34.3]} 22. Nd3 {[%clk 0:00:52]} 22... c4 {[%clk 0:00:33.2]} 23. Nc5 {[%clk
0:00:52.3]} 23... Bd5 {[%clk 0:00:09.1]} 24. e4 {[%clk 0:00:51.9]} 24... Rac8
{[%clk 0:00:09.4]} 25. Na6 {[%clk 0:00:49.1]} 25... Bb7 {[%clk 0:00:08.8]} 26.
exf5 {[%clk 0:00:48.4]} 26... Bxa6 {[%clk 0:00:08.4]} 27. fxe6 {[%clk
0:00:48.9]} 27... Re8 {[%clk 0:00:08]} 28. Bxe8 {[%clk 0:00:48.4]} 1-0

[Event "*** Titled Tuesday Blitz"]
[Site "Chess.com"]
[Date "2021.02.02"]
[Round "8"]
[White "Goryachkina"]
[Black "ErikRonka"]
[Result "1-0"]
[WhiteElo "2651"]
[BlackElo "2469"]
[TimeControl "180+1"]
[EndTime "11:28:55 PST"]
[Termination "Goryachkina won by resignation"]

1. e4 {[%clk 0:03:00.2]} 1... c6 {[%clk 0:02:59.8]} 2. d4 {[%clk 0:02:59.4]}
2... d5 {[%clk 0:03:00.7]} 3. e5 {[%clk 0:02:59.7]} 3... c5 {[%clk 0:03:00.9]}
4. dxc5 {[%clk 0:02:57.8]} 4... e6 {[%clk 0:03:01.3]} 5. Bd3 {[%clk 0:02:55.6]}
5... Nc6 {[%clk 0:02:57.7]} 6. Nf3 {[%clk 0:02:55.5]} 6... Bxc5 {[%clk
0:02:56.9]} 7. a3 {[%clk 0:02:54.7]} 7... Nge7 {[%clk 0:02:44.5]} 8. O-O {[%clk
0:02:53.7]} 8... Ng6 {[%clk 0:02:44.5]} 9. b4 {[%clk 0:02:49]} 9... Bb6 {[%clk
0:02:42.9]} 10. Bb2 {[%clk 0:02:45.7]} 10... Nf4 {[%clk 0:02:42.2]} 11. Bb5
{[%clk 0:02:32.9]} 11... a6 {[%clk 0:01:50.1]} 12. Ba4 {[%clk 0:02:31.6]} 12...
O-O {[%clk 0:01:44.9]} 13. Qd2 {[%clk 0:02:24.8]} 13... Ng6 {[%clk 0:01:41.1]}
14. Re1 {[%clk 0:02:12]} 14... Bd7 {[%clk 0:01:31.9]} 15. Bb3 {[%clk 0:02:11.5]}
15... Rc8 {[%clk 0:01:21.1]} 16. Nc3 {[%clk 0:02:11.1]} 16... Qc7 {[%clk
0:01:08.4]} 17. Rad1 {[%clk 0:01:52.7]} 17... Rfd8 {[%clk 0:00:44.3]} 18. Na2
{[%clk 0:01:44.9]} 18... Be8 {[%clk 0:00:39.8]} 19. Nc1 {[%clk 0:01:43.2]} 19...
a5 {[%clk 0:00:32.6]} 20. h4 {[%clk 0:01:40.3]} 20... axb4 {[%clk 0:00:32]} 21.
axb4 {[%clk 0:01:40.1]} 21... Nce7 {[%clk 0:00:27.5]} 22. h5 {[%clk 0:01:38.2]}
22... Nf8 {[%clk 0:00:27.5]} 23. h6 {[%clk 0:01:30]} 23... g6 {[%clk 0:00:22]}
24. Qg5 {[%clk 0:01:28.7]} 24... Nd7 {[%clk 0:00:14.6]} 25. Qxe7 {[%clk
0:01:26.6]} 25... Nxe5 {[%clk 0:00:09]} 26. Qxc7 {[%clk 0:01:12.6]} 26... Nxf3+
{[%clk 0:00:08.5]} 27. gxf3 {[%clk 0:01:13.5]} 27... Bxc7 {[%clk 0:00:07.8]} 28.
Nd3 {[%clk 0:01:13.3]} 28... Bb5 {[%clk 0:00:05.9]} 29. Ne5 {[%clk 0:01:07.7]}
29... Bd6 {[%clk 0:00:05.6]} 30. Ng4 {[%clk 0:01:05.3]} 30... Bxb4 {[%clk
0:00:04.3]} 31. Nf6+ {[%clk 0:01:04.2]} 31... Kh8 {[%clk 0:00:04.5]} 32. Nxd5+
{[%clk 0:01:03.8]} 1-0

[Event "*** Titled Tuesday Blitz"]
[Site "Chess.com"]
[Date "2021.02.02"]
[Round "8"]
[White "petrkostenko"]
[Black "Piacramling"]
[Result "0-1"]
[WhiteElo "2418"]
[BlackElo "2296"]
[TimeControl "180+1"]
[EndTime "11:28:55 PST"]
[Termination "Piacramling won on time"]

1. e4 {[%clk 0:02:59.1]} 1... c5 {[%clk 0:02:59.2]} 2. Nf3 {[%clk 0:02:58.1]}
2... e6 {[%clk 0:02:59.3]} 3. c4 {[%clk 0:02:57.3]} 3... Nc6 {[%clk 0:02:58.1]}
4. Be2 {[%clk 0:02:57.5]} 4... Qb6 {[%clk 0:02:57.5]} 5. Nc3 {[%clk 0:02:50.4]}
5... a6 {[%clk 0:02:56.7]} 6. d3 {[%clk 0:02:48.6]} 6... Nd4 {[%clk 0:02:52.6]}
7. O-O {[%clk 0:02:46.5]} 7... Ne7 {[%clk 0:02:50.1]} 8. Nxd4 {[%clk 0:02:38.3]}
8... cxd4 {[%clk 0:02:50.3]} 9. Na4 {[%clk 0:02:38.7]} 9... Qc7 {[%clk
0:02:50.1]} 10. c5 {[%clk 0:02:37]} 10... Nc6 {[%clk 0:02:49.9]} 11. Bd2 {[%clk
0:02:16.3]} 11... d6 {[%clk 0:02:46.7]} 12. b4 {[%clk 0:02:15.1]} 12... Bd7
{[%clk 0:02:37.2]} 13. Rc1 {[%clk 0:02:14.8]} 13... Be7 {[%clk 0:02:32.6]} 14.
f4 {[%clk 0:02:10.1]} 14... O-O {[%clk 0:02:32]} 15. a3 {[%clk 0:01:49.5]} 15...
Rad8 {[%clk 0:02:27.7]} 16. Qb3 {[%clk 0:01:43.2]} 16... Qb8 {[%clk 0:02:23.5]}
17. Nb6 {[%clk 0:01:40.8]} 17... Na7 {[%clk 0:02:01.8]} 18. Qb2 {[%clk
0:01:25.9]} 18... Bc6 {[%clk 0:01:45.5]} 19. Rc4 {[%clk 0:01:05.1]} 19... Bb5
{[%clk 0:01:34.9]} 20. Rc2 {[%clk 0:00:47.4]} 20... Bc6 {[%clk 0:01:22.1]} 21.
Rfc1 {[%clk 0:00:17.7]} 21... Nc8 {[%clk 0:01:20.8]} 22. Nc4 {[%clk 0:00:16.3]}
22... dxc5 {[%clk 0:01:18]} 23. bxc5 {[%clk 0:00:16.5]} 23... Ba4 {[%clk
0:01:13.6]} 24. Na5 {[%clk 0:00:11]} 24... Bxc2 {[%clk 0:01:09.4]} 25. Rxc2
{[%clk 0:00:11.3]} 25... Na7 {[%clk 0:01:08.1]} 26. Qxb7 {[%clk 0:00:03.7]}
26... Qxb7 {[%clk 0:01:06.2]} 27. Nxb7 {[%clk 0:00:03.8]} 27... Rc8 {[%clk
0:01:05.8]} 28. Na5 {[%clk 0:00:02.6]} 28... Rxc5 {[%clk 0:01:04.6]} 29. Rxc5
{[%clk 0:00:01.6]} 29... Bxc5 {[%clk 0:01:04]} 30. Nb3 {[%clk 0:00:01.8]} 30...
Bxa3 {[%clk 0:01:01.9]} 0-1

[Event "*** Titled Tuesday Blitz"]
[Site "Chess.com"]
[Date "2021.02.02"]
[Round "8"]
[White "sara_khm"]
[Black "Vaathi_Coming"]
[Result "0-1"]
[WhiteElo "2522"]
[BlackElo "2840"]
[TimeControl "180+1"]
[EndTime "11:28:56 PST"]
[Termination "Vaathi_Coming won by resignation"]

1. d4 {[%clk 0:03:00.9]} 1... Nf6 {[%clk 0:02:59]} 2. c4 {[%clk 0:03:00.9]} 2...
e6 {[%clk 0:02:58.9]} 3. Nf3 {[%clk 0:03:00.6]} 3... d5 {[%clk 0:02:59.8]} 4.
Nc3 {[%clk 0:02:59.8]} 4... a6 {[%clk 0:02:59.7]} 5. cxd5 {[%clk 0:02:56.8]}
5... exd5 {[%clk 0:03:00.6]} 6. Bg5 {[%clk 0:02:56.3]} 6... Be6 {[%clk
0:03:00.9]} 7. Bxf6 {[%clk 0:02:45.5]} 7... Qxf6 {[%clk 0:03:01.8]} 8. Qb3
{[%clk 0:02:45.6]} 8... Ra7 {[%clk 0:02:55.3]} 9. e3 {[%clk 0:02:32.4]} 9... Qd8
{[%clk 0:02:49.7]} 10. Bd3 {[%clk 0:02:31.3]} 10... Bd6 {[%clk 0:02:44.1]} 11.
O-O {[%clk 0:02:28.2]} 11... O-O {[%clk 0:02:43.5]} 12. Qc2 {[%clk 0:02:26.1]}
12... g6 {[%clk 0:02:42.9]} 13. Rad1 {[%clk 0:02:19.9]} 13... Nd7 {[%clk
0:02:40]} 14. a3 {[%clk 0:02:19.5]} 14... f5 {[%clk 0:02:38.1]} 15. Nd2 {[%clk
0:02:10.4]} 15... Nf6 {[%clk 0:02:32.3]} 16. f4 {[%clk 0:02:09.5]} 16... c5
{[%clk 0:02:28.3]} 17. Nf3 {[%clk 0:02:06.1]} 17... c4 {[%clk 0:02:28.1]} 18.
Be2 {[%clk 0:02:05.5]} 18... b5 {[%clk 0:02:22.1]} 19. Ne5 {[%clk 0:02:04.1]}
19... Qe8 {[%clk 0:02:15.8]} 20. Bf3 {[%clk 0:02:02.3]} 20... a5 {[%clk
0:02:14.8]} 21. a4 {[%clk 0:01:48.5]} 21... b4 {[%clk 0:02:07.6]} 22. Nb5 {[%clk
0:01:48.2]} 22... Ra6 {[%clk 0:02:07.5]} 23. Nxd6 {[%clk 0:01:47.7]} 23... Rxd6
{[%clk 0:02:08.3]} 24. Ra1 {[%clk 0:01:46]} 24... Bc8 {[%clk 0:02:05.6]} 25. Qf2
{[%clk 0:01:45.1]} 25... Bd7 {[%clk 0:02:03.2]} 26. Ra2 {[%clk 0:01:41]} 26...
Rb6 {[%clk 0:01:57]} 27. Rfa1 {[%clk 0:01:39.6]} 27... Qe7 {[%clk 0:01:50]} 28.
h3 {[%clk 0:01:35.1]} 28... Rbb8 {[%clk 0:01:44.3]} 29. Qd2 {[%clk 0:01:29]}
29... Rfc8 {[%clk 0:01:42.5]} 30. Qd1 {[%clk 0:01:28.7]} 30... Qd6 {[%clk
0:01:36.1]} 31. g4 {[%clk 0:01:13.5]} 31... Be6 {[%clk 0:01:34.6]} 32. g5 {[%clk
0:01:12.6]} 32... Nd7 {[%clk 0:01:31.7]} 33. h4 {[%clk 0:01:11.1]} 33... Nxe5
{[%clk 0:01:30.5]} 34. fxe5 {[%clk 0:01:10.9]} 34... Qe7 {[%clk 0:01:30.1]} 35.
Qe2 {[%clk 0:01:09.5]} 35... c3 {[%clk 0:01:22.4]} 36. b3 {[%clk 0:00:58.2]}
36... f4 {[%clk 0:01:04.8]} 37. e4 {[%clk 0:00:37.9]} 37... dxe4 {[%clk
0:01:03.3]} 38. Bxe4 {[%clk 0:00:36.3]} 38... Bxb3 {[%clk 0:01:01.4]} 39. d5
{[%clk 0:00:34]} 39... Bxa2 {[%clk 0:00:57.5]} 0-1

[Event "*** Titled Tuesday Blitz"]
[Site "Chess.com"]
[Date "2021.02.02"]
[Round "8"]
[White "mirochka"]
[Black "MasterSonnevanck23"]
[Result "0-1"]
[WhiteElo "2215"]
[BlackElo "2378"]
[TimeControl "180+1"]
[EndTime "11:28:57 PST"]
[Termination "MasterSonnevanck23 won by resignation"]

1. e4 {[%clk 0:03:00.9]} 1... e5 {[%clk 0:02:59.5]} 2. Nf3 {[%clk 0:02:59.9]}
2... Nc6 {[%clk 0:02:59.5]} 3. d4 {[%clk 0:03:00.4]} 3... exd4 {[%clk
0:02:58.7]} 4. c3 {[%clk 0:03:00.3]} 4... dxc3 {[%clk 0:02:55.8]} 5. Nxc3 {[%clk
0:02:59.7]} 5... Bc5 {[%clk 0:02:55.3]} 6. Bc4 {[%clk 0:02:54.9]} 6... d6 {[%clk
0:02:55.2]} 7. O-O {[%clk 0:02:47]} 7... Nge7 {[%clk 0:02:54.1]} 8. Ng5 {[%clk
0:01:58.4]} 8... Ne5 {[%clk 0:02:44.9]} 9. Bb3 {[%clk 0:01:39.8]} 9... h6 {[%clk
0:02:42.9]} 10. Qh5 {[%clk 0:01:34.7]} 10... O-O {[%clk 0:02:07.9]} 11. Nxf7
{[%clk 0:01:26.2]} 11... Rxf7 {[%clk 0:01:40.8]} 12. Be3 {[%clk 0:01:02.7]}
12... N7g6 {[%clk 0:01:19.2]} 13. Bxc5 {[%clk 0:00:58.2]} 13... Bg4 {[%clk
0:01:05.8]} 14. Bxf7+ {[%clk 0:00:54.4]} 14... Kxf7 {[%clk 0:01:05.5]} 15. f4
{[%clk 0:00:19]} 15... Bxh5 {[%clk 0:01:01.4]} 16. fxe5+ {[%clk 0:00:18.5]}
16... Kg8 {[%clk 0:00:58.6]} 17. exd6 {[%clk 0:00:17.6]} 17... cxd6 {[%clk
0:00:57.1]} 18. Bd4 {[%clk 0:00:17.8]} 18... Ne5 {[%clk 0:00:55.6]} 19. Nd5
{[%clk 0:00:16.9]} 19... Bf7 {[%clk 0:00:51.3]} 20. Rac1 {[%clk 0:00:16.5]}
20... Bxd5 {[%clk 0:00:49.7]} 21. exd5 {[%clk 0:00:17.3]} 21... Qd7 {[%clk
0:00:43.5]} 22. Rc3 {[%clk 0:00:17]} 22... Rf8 {[%clk 0:00:40.1]} 23. Re1 {[%clk
0:00:16.4]} 23... Qg4 {[%clk 0:00:33.9]} 24. Rg3 {[%clk 0:00:16.1]} 24... Qxd4+
{[%clk 0:00:32.5]} 0-1

[Event "*** Titled Tuesday Blitz"]
[Site "Chess.com"]
[Date "2021.02.02"]
[Round "8"]
[White "Hikaru"]
[Black "Rud_Makarian"]
[Result "1-0"]
[WhiteElo "3179"]
[BlackElo "2915"]
[TimeControl "180+1"]
[EndTime "11:29:00 PST"]
[Termination "Hikaru won on time"]

1. e4 {[%clk 0:03:00.9]} 1... e5 {[%clk 0:03:00.2]} 2. Nc3 {[%clk 0:03:00.7]}
2... Nc6 {[%clk 0:03:00.8]} 3. Bc4 {[%clk 0:02:55.8]} 3... Nf6 {[%clk 0:02:58]}
4. d3 {[%clk 0:02:55.2]} 4... Bc5 {[%clk 0:02:57.9]} 5. Nf3 {[%clk 0:02:50.6]}
5... h6 {[%clk 0:02:53.5]} 6. Na4 {[%clk 0:02:50.3]} 6... Be7 {[%clk 0:02:48.2]}
7. Nc3 {[%clk 0:02:50]} 7... Bc5 {[%clk 0:02:41.8]} 8. Bb3 {[%clk 0:02:50.1]}
8... d6 {[%clk 0:02:35.8]} 9. Na4 {[%clk 0:02:49.9]} 9... O-O {[%clk 0:02:12]}
10. Nxc5 {[%clk 0:02:49]} 10... dxc5 {[%clk 0:02:12.9]} 11. Ba4 {[%clk
0:02:46.3]} 11... Nd4 {[%clk 0:02:12.6]} 12. Nxe5 {[%clk 0:02:35.3]} 12... b5
{[%clk 0:02:05.7]} 13. Bb3 {[%clk 0:02:34.5]} 13... c4 {[%clk 0:01:55.1]} 14.
dxc4 {[%clk 0:02:29.2]} 14... Re8 {[%clk 0:01:51.8]} 15. f4 {[%clk 0:02:29.3]}
15... Nxe4 {[%clk 0:01:45]} 16. O-O {[%clk 0:02:23.8]} 16... b4 {[%clk 0:01:22]}
17. Ba4 {[%clk 0:02:13.9]} 17... Rxe5 {[%clk 0:00:59.9]} 18. fxe5 {[%clk
0:02:12.8]} 18... Bb7 {[%clk 0:01:00.6]} 19. Be3 {[%clk 0:02:09.5]} 19... c5
{[%clk 0:00:59.4]} 20. Bxd4 {[%clk 0:01:56.2]} 20... cxd4 {[%clk 0:01:00.3]} 21.
c5 {[%clk 0:01:55.6]} 21... Nxc5 {[%clk 0:00:44.5]} 22. Bb3 {[%clk 0:01:55.4]}
22... Qg5 {[%clk 0:00:33.1]} 23. Qe2 {[%clk 0:01:48]} 23... Rf8 {[%clk
0:00:29.9]} 24. e6 {[%clk 0:01:44.9]} 24... fxe6 {[%clk 0:00:17.7]} 25. Rxf8+
{[%clk 0:01:20.4]} 25... Kxf8 {[%clk 0:00:18.6]} 26. Rf1+ {[%clk 0:01:20.5]}
26... Ke7 {[%clk 0:00:17.3]} 27. Qf2 {[%clk 0:01:21]} 27... Ne4 {[%clk
0:00:02.8]} 28. Qf7+ {[%clk 0:00:45.5]} 1-0

[Event "*** Titled Tuesday Blitz"]
[Site "Chess.com"]
[Date "2021.02.02"]
[Round "8"]
[White "TurboSteen"]
[Black "mr65"]
[Result "1-0"]
[WhiteElo "2040"]
[BlackElo "2099"]
[TimeControl "180+1"]
[EndTime "11:29:02 PST"]
[Termination "TurboSteen won by resignation"]

1. e4 {[%clk 0:03:00.9]} 1... e5 {[%clk 0:02:11.4]} 2. Nf3 {[%clk 0:02:57.7]}
2... Nc6 {[%clk 0:02:11.1]} 3. Bb5 {[%clk 0:02:57.8]} 3... a6 {[%clk 0:02:09.2]}
4. Ba4 {[%clk 0:02:57.6]} 4... Nf6 {[%clk 0:02:09.3]} 5. O-O {[%clk 0:02:57.4]}
5... Be7 {[%clk 0:02:09.4]} 6. Re1 {[%clk 0:02:55]} 6... b5 {[%clk 0:02:09.2]}
7. Bb3 {[%clk 0:02:52.6]} 7... O-O {[%clk 0:02:09]} 8. c3 {[%clk 0:02:50.7]}
8... d5 {[%clk 0:02:07.7]} 9. exd5 {[%clk 0:02:49.4]} 9... Nxd5 {[%clk
0:02:07.5]} 10. Nxe5 {[%clk 0:02:49.9]} 10... Nxe5 {[%clk 0:02:07.3]} 11. Rxe5
{[%clk 0:02:49.9]} 11... c6 {[%clk 0:02:07.3]} 12. d4 {[%clk 0:02:48.9]} 12...
Bd6 {[%clk 0:02:07]} 13. Re1 {[%clk 0:02:48.4]} 13... Qh4 {[%clk 0:02:06.3]} 14.
g3 {[%clk 0:02:42.5]} 14... Qh3 {[%clk 0:02:05.9]} 15. Re4 {[%clk 0:02:33]}
15... g5 {[%clk 0:01:51.4]} 16. Qf3 {[%clk 0:02:30.6]} 16... Bd7 {[%clk
0:01:38.8]} 17. Bxg5 {[%clk 0:02:22.8]} 17... Rae8 {[%clk 0:01:35.5]} 18. Nd2
{[%clk 0:02:18.6]} 18... Rxe4 {[%clk 0:01:31.7]} 19. Nxe4 {[%clk 0:02:16.1]}
19... Bg4 {[%clk 0:01:29.7]} 20. Qg2 {[%clk 0:02:08.6]} 20... Bc7 {[%clk
0:01:26.7]} 21. Re1 {[%clk 0:01:52.3]} 21... f5 {[%clk 0:01:07.7]} 22. Nf6+
{[%clk 0:01:45.9]} 22... Rxf6 {[%clk 0:01:07.2]} 23. Bxf6 {[%clk 0:01:43.4]}
23... Qh5 {[%clk 0:01:05.4]} 24. Be5 {[%clk 0:01:30.1]} 24... Bf3 {[%clk
0:00:59.5]} 25. Qf1 {[%clk 0:01:25.9]} 25... Bxe5 {[%clk 0:00:49.6]} 26. Rxe5
{[%clk 0:01:23.3]} 26... Kg7 {[%clk 0:00:43.2]} 27. Bxd5 {[%clk 0:01:20.1]}
27... cxd5 {[%clk 0:00:41.5]} 28. h3 {[%clk 0:01:15.2]} 28... Be4 {[%clk
0:00:37.9]} 29. g4 {[%clk 0:01:10]} 29... Qg5 {[%clk 0:00:27.3]} 30. f3 {[%clk
0:00:57.7]} 30... Qe3+ {[%clk 0:00:24.3]} 31. Qf2 {[%clk 0:00:51.2]} 1-0

[Event "*** Titled Tuesday Blitz"]
[Site "Chess.com"]
[Date "2021.02.02"]
[Round "8"]
[White "olksuna"]
[Black "PriSachu"]
[Result "1-0"]
[WhiteElo "2691"]
[BlackElo "2491"]
[TimeControl "180+1"]
[EndTime "11:29:03 PST"]
[Termination "olksuna won by resignation"]

1. e4 {[%clk 0:03:00.9]} 1... e5 {[%clk 0:02:53.3]} 2. d4 {[%clk 0:03:00.5]}
2... exd4 {[%clk 0:02:52.6]} 3. Qxd4 {[%clk 0:03:01.4]} 3... Nc6 {[%clk
0:02:50.3]} 4. Qc4 {[%clk 0:03:01.5]} 4... Nf6 {[%clk 0:02:27.1]} 5. Nc3 {[%clk
0:03:01.6]} 5... Bb4 {[%clk 0:02:24.8]} 6. Bd2 {[%clk 0:03:01.5]} 6... O-O
{[%clk 0:02:24.1]} 7. O-O-O {[%clk 0:03:01.5]} 7... Re8 {[%clk 0:02:24.2]} 8. f3
{[%clk 0:03:01.5]} 8... Ne5 {[%clk 0:02:08.5]} 9. Qxb4 {[%clk 0:02:59.9]} 9...
c6 {[%clk 0:01:56.5]} 10. Nh3 {[%clk 0:02:49.8]} 10... a5 {[%clk 0:01:53.9]} 11.
Qd4 {[%clk 0:02:49.1]} 11... b5 {[%clk 0:01:53]} 12. f4 {[%clk 0:02:48.6]} 12...
Ng6 {[%clk 0:01:52.5]} 13. e5 {[%clk 0:02:48.3]} 13... Ng4 {[%clk 0:01:51]} 14.
Ne4 {[%clk 0:02:45.4]} 14... d5 {[%clk 0:01:45.9]} 15. Nd6 {[%clk 0:02:39.3]}
15... Re7 {[%clk 0:01:39.1]} 16. Be2 {[%clk 0:02:34.2]} 16... Nf6 {[%clk
0:01:25.2]} 17. Bf3 {[%clk 0:02:20.3]} 17... Ne8 {[%clk 0:01:17.9]} 18. Nxe8
{[%clk 0:02:14.1]} 18... Rxe8 {[%clk 0:01:15.2]} 19. Nf2 {[%clk 0:02:12.7]}
19... Qc7 {[%clk 0:01:08.4]} 20. Nd3 {[%clk 0:02:07.8]} 20... b4 {[%clk
0:01:00.3]} 21. Nc5 {[%clk 0:02:06.4]} 21... Rb8 {[%clk 0:00:53.3]} 22. g3
{[%clk 0:02:05.4]} 22... Qa7 {[%clk 0:00:49.1]} 23. Be3 {[%clk 0:02:04.4]} 23...
Ne7 {[%clk 0:00:48.6]} 24. g4 {[%clk 0:01:58.5]} 24... a4 {[%clk 0:00:48.9]} 25.
Kb1 {[%clk 0:01:49.6]} 25... Ng6 {[%clk 0:00:39.2]} 26. h4 {[%clk 0:01:40.6]}
26... Nf8 {[%clk 0:00:37.7]} 27. f5 {[%clk 0:01:36.6]} 27... Nd7 {[%clk
0:00:37.4]} 28. Nxd7 {[%clk 0:01:34]} 28... Qxd7 {[%clk 0:00:38.3]} 29. Bf4
{[%clk 0:01:30]} 29... Rb5 {[%clk 0:00:37]} 30. h5 {[%clk 0:01:29.5]} 30... Bb7
{[%clk 0:00:35.7]} 31. h6 {[%clk 0:01:25.8]} 31... c5 {[%clk 0:00:35.4]} 32. Qd2
{[%clk 0:01:24.7]} 32... g6 {[%clk 0:00:32.8]} 33. fxg6 {[%clk 0:01:20.4]} 33...
d4 {[%clk 0:00:27.5]} 34. Bxb7 {[%clk 0:01:17.8]} 34... Qxb7 {[%clk 0:00:26.9]}
35. gxh7+ {[%clk 0:01:18.1]} 35... Kh8 {[%clk 0:00:23.5]} 36. Bg5 {[%clk
0:01:17.8]} 36... Qe4 {[%clk 0:00:20]} 37. Bf6+ {[%clk 0:01:15.3]} 37... Kxh7
{[%clk 0:00:20.3]} 38. Qd3 {[%clk 0:01:15.9]} 38... Qxd3 {[%clk 0:00:19.7]} 39.
cxd3 {[%clk 0:01:16.8]} 39... b3 {[%clk 0:00:19.6]} 40. a3 {[%clk 0:01:16.3]}
40... Rb7 {[%clk 0:00:18.6]} 41. g5 {[%clk 0:01:16.6]} 41... Rd7 {[%clk
0:00:19.1]} 42. Rc1 {[%clk 0:01:16.6]} 42... Rd5 {[%clk 0:00:19.1]} 43. Rc4
{[%clk 0:01:16.6]} 43... Rexe5 {[%clk 0:00:15.4]} 44. Bxe5 {[%clk 0:01:16.4]}
44... Rxe5 {[%clk 0:00:16.1]} 45. Rxa4 {[%clk 0:01:16.6]} 45... Rxg5 {[%clk
0:00:15.7]} 46. Rc4 {[%clk 0:01:16.8]} 1-0

[Event "*** Titled Tuesday Blitz"]
[Site "Chess.com"]
[Date "2021.02.02"]
[Round "8"]
[White "Grimlock_Glasgow"]
[Black "ajdemipopushi"]
[Result "1-0"]
[WhiteElo "2483"]
[BlackElo "2323"]
[TimeControl "180+1"]
[EndTime "11:29:03 PST"]
[Termination "Grimlock_Glasgow won on time"]

1. e4 {[%clk 0:03:00.9]} 1... c5 {[%clk 0:02:59.4]} 2. Nc3 {[%clk 0:03:00.5]}
2... g6 {[%clk 0:02:59.3]} 3. d4 {[%clk 0:02:59.2]} 3... cxd4 {[%clk 0:02:57.8]}
4. Qxd4 {[%clk 0:03:00.1]} 4... Nf6 {[%clk 0:02:58.1]} 5. Be3 {[%clk 0:03:00.3]}
5... Nc6 {[%clk 0:02:57.8]} 6. Qd2 {[%clk 0:03:00.8]} 6... Ng4 {[%clk
0:02:18.2]} 7. Bf4 {[%clk 0:02:59.2]} 7... d6 {[%clk 0:02:17.5]} 8. f3 {[%clk
0:02:56.9]} 8... Nge5 {[%clk 0:02:15.8]} 9. O-O-O {[%clk 0:02:55.6]} 9... h5
{[%clk 0:02:12.4]} 10. Bg5 {[%clk 0:02:43.5]} 10... Bg7 {[%clk 0:02:10.2]} 11.
f4 {[%clk 0:02:41.6]} 11... Nd7 {[%clk 0:01:55.3]} 12. Nf3 {[%clk 0:02:32.6]}
12... Nc5 {[%clk 0:01:49.5]} 13. e5 {[%clk 0:02:20.5]} 13... Bf5 {[%clk
0:01:34.5]} 14. exd6 {[%clk 0:02:02.2]} 14... Qxd6 {[%clk 0:01:32.8]} 15. Qxd6
{[%clk 0:01:58.4]} 15... exd6 {[%clk 0:01:32.7]} 16. Nb5 {[%clk 0:01:47]} 16...
O-O {[%clk 0:01:28.5]} 17. Nxd6 {[%clk 0:01:41.4]} 17... Bg4 {[%clk 0:01:25.9]}
18. Bc4 {[%clk 0:01:35.5]} 18... a6 {[%clk 0:01:11.1]} 19. Rhe1 {[%clk
0:01:20.7]} 19... Bxf3 {[%clk 0:01:09.9]} 20. gxf3 {[%clk 0:01:19.8]} 20... Nd4
{[%clk 0:00:34.6]} 21. Re7 {[%clk 0:01:00.9]} 21... Nxf3 {[%clk 0:00:24.2]} 22.
Nxf7 {[%clk 0:00:50.9]} 22... Nxg5 {[%clk 0:00:10.3]} 23. Nxg5+ {[%clk
0:00:43.7]} 23... Kh8 {[%clk 0:00:10.5]} 24. b4 {[%clk 0:00:36.2]} 1-0